fUSD/lending_fUSD_20250309
["ID","MTS","AMOUNT","RATE_DAILY","PERIOD"]
[355762248,1741543849358,-427.52831962,8.219e-05,2]
[355762249,1741543849368,-502.44998188,8.219e-05,2]
[355762250,1741543849378,-518.87505244,8.219e-05,2]
[355762251,1741543849387,-500.0,8.219e-05,2]
[355762252,1741543849396,-500.0,8.219e-05,2]
[355762253,1741543849407,-500.0,8.219e-05,2]
[355762254,1741543849418,-598.77,8.219e-05,2]
[355762255,1741543849428,-506.55814174,8.219e-05,2]
[355762256,1741543849438,-504.38946859,8.219e-05,2]
[355762257,1741543849449,-500.0,8.219e-05,2]
[355762258,1741543849459,-2477238.84490556,8.219e-05,2]
[355762259,1741543849494,-1087.0764155,8.219e-05,2]
[355762260,1741543849506,-1041.1660869,8.219e-05,2]
[355762261,1741543849520,-291.569994,8.219e-05,2]
[355762262,1741543849544,-6780.7692,8.219e-05,2]
[355762263,1741543849630,-1663.46094657,8.219e-05,2]
[355762264,1741543849666,-418.26905343,8.219e-05,2]
[355762265,1741543849676,-371854.87150092,8.219e-05,2]
[355762266,1741543850166,-1440.2817045,8.219e-05,2]
[355762267,1741543850185,-461896.78811862,8.219e-05,2]
[355762268,1741543850398,-13866.92953,8.219e-05,2]
[355762269,1741543850410,-1135.375005,8.219e-05,2]
[355762270,1741543850421,-479.93363991,8.219e-05,2]
[355762271,1741543850445,-4900.0,8.219e-05,2]
[355762274,1741543917978,1453.11,7.933e-05,2]
[355762275,1741543922332,-150.0,8.219e-05,2]
[355762276,1741543922361,-361.64644717,8.219e-05,2]
[355762277,1741543922391,-500.0,8.219e-05,2]
[355762278,1741543922418,-1849.75,8.219e-05,2]
[355762279,1741543922666,-519.83489712,8.219e-05,2]
[355762280,1741543922699,-500.0,8.219e-05,2]
[355762281,1741543922729,-1558.33,8.219e-05,2]
[355762282,1741543922757,-658.28070013,8.219e-05,2]
[355762283,1741543922808,-340.35929987,8.219e-05,2]
[355762284,1741543922837,-502.4776036,8.219e-05,2]
[355762285,1741543922865,-508.57899599,8.219e-05,2]
[355762286,1741543922893,-177.40784,8.219e-05,2]
[355762287,1741543922921,-500.0,8.219e-05,2]
[355762288,1741543922949,-500.0,8.219e-05,2]
[355762289,1741543922976,-500.0,8.219e-05,2]
[355762290,1741543923004,-500.0,8.219e-05,2]
[355762291,1741543923035,-1015.0,8.219e-05,2]
[355762292,1741543923069,-500.0,8.219e-05,2]
[355762293,1741543923103,-22.76585247,8.219e-05,2]
[355762294,1741543923478,-482.08090697,8.219e-05,2]
[355762295,1741543923507,-523.31245866,8.219e-05,2]
[355762296,1741543923536,-500.0,8.219e-05,2]
[355762297,1741543923567,-1134.47,8.219e-05,2]
[355762298,1741543923601,-500.0,8.219e-05,2]
[355762299,1741543923632,-500.0,8.219e-05,2]
[355762300,1741543923663,-85.00801033,8.219e-05,2]
[355762306,1741543968074,166.47,8.165e-05,2]
[355762317,1741544236537,400.0,0.00028,120]
[355762319,1741544280039,-150.0,8.218e-05,2]
[355762320,1741544280067,-5756.13064885,8.218e-05,2]
[355762321,1741544280099,-151.26926437,8.218e-05,2]
[355762322,1741544280127,-500.0,8.219e-05,2]
[355762324,1741544280156,-308.42941146,8.219e-05,2]
[355762325,1741544280186,-500.0,8.219e-05,2]
[355762326,1741544280221,-500.0,8.219e-05,2]
[355762327,1741544280250,-506.79866403,8.219e-05,2]
[355762328,1741544280279,-521.44716541,8.219e-05,2]
[355762329,1741544280308,-507.80772357,8.219e-05,2]
[355762330,1741544280335,-500.0,8.219e-05,2]
[355762331,1741544280364,-508.22431765,8.219e-05,2]
[355762332,1741544280391,-500.0,8.219e-05,2]
[355762333,1741544280419,-500.0,8.219e-05,2]
[355762334,1741544280446,-503.16927744,8.219e-05,2]
[355762335,1741544280474,-500.0,8.219e-05,2]
[355762336,1741544280501,-500.0,8.219e-05,2]
[355762337,1741544280529,-500.0,8.219e-05,2]
[355762338,1741544280557,-500.0,8.219e-05,2]
[355762339,1741544280584,-500.0,8.219e-05,2]
[355762340,1741544280616,-500.0,8.219e-05,2]
[355762341,1741544280645,-500.0,8.219e-05,2]
[355762342,1741544280672,-510.8025144,8.219e-05,2]
[355762343,1741544280700,-500.0,8.219e-05,2]
[355762344,1741544280728,-500.0,8.219e-05,2]
[355762345,1741544280756,-532.17264985,8.219e-05,2]
[355762346,1741544280783,-511.81864142,8.219e-05,2]
[355762347,1741544280810,-500.0,8.219e-05,2]
[355762348,1741544280838,-505.55153993,8.219e-05,2]
[355762349,1741544280869,-500.0,8.219e-05,2]
[355762350,1741544280896,-500.0,8.219e-05,2]
[355762351,1741544280924,-500.0,8.219e-05,2]
[355762352,1741544280951,-500.0,8.219e-05,2]
[355762353,1741544280979,-500.0,8.219e-05,2]
[355762354,1741544281008,-500.0,8.219e-05,2]
[355762355,1741544281035,-500.0,8.219e-05,2]
[355762356,1741544281064,-500.0,8.219e-05,2]
[355762357,1741544281092,-500.0,8.219e-05,2]
[355762358,1741544281125,-502.57483329,8.219e-05,2]
[355762359,1741544281155,-500.0,8.219e-05,2]
[355762360,1741544281183,-500.0,8.219e-05,2]
[355762361,1741544281214,-225.56755034,8.219e-05,2]
[355762362,1741544281242,-500.0,8.219e-05,2]
[355762363,1741544281268,-500.0,8.219e-05,2]
[355762364,1741544281297,-500.0,8.219e-05,2]
[355762365,1741544281323,-500.0,8.219e-05,2]
[355762366,1741544281352,-500.0,8.219e-05,2]
[355762367,1741544281380,-500.0,8.219e-05,2]
[355762368,1741544281408,-500.0,8.219e-05,2]
[355762369,1741544281434,-500.0,8.219e-05,2]
[355762370,1741544281461,-504.43757961,8.219e-05,2]
[355762371,1741544281488,-500.0,8.219e-05,2]
[355762372,1741544281514,-500.0,8.219e-05,2]
[355762373,1741544281541,-500.0,8.219e-05,2]
[355762374,1741544281570,-500.0,8.219e-05,2]
[355762375,1741544281606,-500.41340287,8.219e-05,2]
[355762376,1741544281633,-500.0,8.219e-05,2]
[355762377,1741544281662,-500.0,8.219e-05,2]
[355762378,1741544281690,-500.0,8.219e-05,2]
[355762379,1741544281718,-500.0,8.219e-05,2]
[355762380,1741544281746,-500.8213724,8.219e-05,2]
[355762381,1741544281775,-500.0,8.219e-05,2]
[355762382,1741544281806,-500.0,8.219e-05,2]
[355762383,1741544281835,-500.0,8.219e-05,2]
[355762384,1741544281866,-501.02596466,8.219e-05,2]
[355762385,1741544281895,-500.0,8.219e-05,2]
[355762386,1741544281924,-500.0,8.219e-05,2]
[355762387,1741544281951,-500.0,8.219e-05,2]
[355762388,1741544281979,-500.0,8.219e-05,2]
[355762389,1741544282006,-1408.75,8.219e-05,2]
[355762390,1741544282035,-500.0,8.219e-05,2]
[355762391,1741544282063,-500.0,8.219e-05,2]
[355762392,1741544282092,-509.21874869,8.219e-05,2]
[355762393,1741544282123,-500.0,8.219e-05,2]
[355762394,1741544282152,-500.0,8.219e-05,2]
[355762395,1741544282182,-503.19988479,8.219e-05,2]
[355762396,1741544282213,-500.0,8.219e-05,2]
[355762397,1741544282239,-500.0,8.219e-05,2]
[355762398,1741544282264,-500.0,8.219e-05,2]
[355762399,1741544282293,-500.0,8.219e-05,2]
[355762400,1741544282323,-500.0,8.219e-05,2]
[355762401,1741544282357,-500.0,8.219e-05,2]
[355762402,1741544282384,-500.0,8.219e-05,2]
[355762403,1741544282411,-251.48901891,8.219e-05,2]
[355762404,1741544282437,-500.0,8.219e-05,2]
[355762405,1741544282463,-500.0,8.219e-05,2]
[355762406,1741544282490,-500.0,8.219e-05,2]
[355762407,1741544282517,-500.0,8.219e-05,2]
[355762408,1741544282544,-500.0,8.219e-05,2]
[355762409,1741544282570,-500.31777744,8.219e-05,2]
[355762410,1741544282599,-500.0,8.219e-05,2]
[355762411,1741544282625,-500.0,8.219e-05,2]
[355762412,1741544282650,-500.0,8.219e-05,2]
[355762413,1741544282678,-500.0,8.219e-05,2]
[355762414,1741544282704,-366.83032112,8.219e-05,2]
[355762415,1741544282731,-500.0,8.219e-05,2]
[355762416,1741544282759,-500.0,8.219e-05,2]
[355762417,1741544282787,-500.0,8.219e-05,2]
[355762418,1741544282814,-500.0,8.219e-05,2]
[355762419,1741544282839,-500.0,8.219e-05,2]
[355762420,1741544282868,-500.0,8.219e-05,2]
[355762421,1741544282893,-500.0,8.219e-05,2]
[355762422,1741544282919,-500.0,8.219e-05,2]
[355762423,1741544282948,-500.0,8.219e-05,2]
[355762424,1741544282976,-501.9105524,8.219e-05,2]
[355762425,1741544283002,-500.0,8.219e-05,2]
[355762426,1741544283031,-710.07,8.219e-05,2]
[355762427,1741544283061,-500.0,8.219e-05,2]
[355762428,1741544283091,-500.0,8.219e-05,2]
[355762429,1741544283121,-515.91381915,8.219e-05,2]
[355762430,1741544283151,-500.0,8.219e-05,2]
[355762431,1741544283181,-340.42342177,8.219e-05,2]
[355762432,1741544283218,-500.0,8.219e-05,2]
[355762433,1741544283256,-500.0,8.219e-05,2]
[355762434,1741544283286,-500.0,8.219e-05,2]
[355762435,1741544283315,-503.53225294,8.219e-05,2]
[355762436,1741544283342,-500.0,8.219e-05,2]
[355762437,1741544283375,-500.0,8.219e-05,2]
[355762438,1741544283402,-501.82856716,8.219e-05,2]
[355762439,1741544283432,-500.0,8.219e-05,2]
[355762440,1741544283462,-500.0,8.219e-05,2]
[355762441,1741544283492,-385.26679211,8.219e-05,2]
[355762442,1741544283521,-500.0,8.219e-05,2]
[355762443,1741544283725,-500.0,8.219e-05,2]
[355762444,1741544283754,-500.0,8.219e-05,2]
[355762445,1741544283783,-500.0,8.219e-05,2]
[355762446,1741544283815,-517.33639915,8.219e-05,2]
[355762447,1741544283848,-500.0,8.219e-05,2]
[355762448,1741544283880,-500.0,8.219e-05,2]
[355762449,1741544283911,-500.0,8.219e-05,2]
[355762450,1741544283940,-500.0,8.219e-05,2]
[355762451,1741544283966,-500.0,8.219e-05,2]
[355762452,1741544283990,-500.0,8.219e-05,2]
[355762453,1741544284013,-500.0,8.219e-05,2]
[355762454,1741544284041,-500.0,8.219e-05,2]
[355762455,1741544284069,-559.99,8.219e-05,2]
[355762456,1741544284100,-500.0,8.219e-05,2]
[355762457,1741544284129,-500.0,8.219e-05,2]
[355762458,1741544284157,-500.0,8.219e-05,2]
[355762459,1741544284189,-500.0,8.219e-05,2]
[355762460,1741544284222,-501.15291111,8.219e-05,2]
[355762461,1741544284252,-500.0,8.219e-05,2]
[355762462,1741544284281,-500.0,8.219e-05,2]
[355762463,1741544284308,-500.0,8.219e-05,2]
[355762464,1741544284337,-500.0,8.219e-05,2]
[355762465,1741544284371,-500.0,8.219e-05,2]
[355762466,1741544284401,-500.0,8.219e-05,2]
[355762467,1741544284429,-506.16187764,8.219e-05,2]
[355762468,1741544284459,-500.0,8.219e-05,2]
[355762469,1741544284490,-500.0,8.219e-05,2]
[355762470,1741544284520,-500.0,8.219e-05,2]
[355762471,1741544284551,-500.0,8.219e-05,2]
[355762472,1741544284581,-500.0,8.219e-05,2]
[355762473,1741544284617,-500.0,8.219e-05,2]
[355762474,1741544284646,-500.0,8.219e-05,2]
[355762475,1741544284675,-500.0,8.219e-05,2]
[355762476,1741544284703,-500.0,8.219e-05,2]
[355762477,1741544284731,-500.0,8.219e-05,2]
[355762478,1741544284760,-500.0,8.219e-05,2]
[355762479,1741544284788,-500.0,8.219e-05,2]
[355762480,1741544284818,-500.0,8.219e-05,2]
[355762481,1741544284852,-500.0,8.219e-05,2]
[355762482,1741544284881,-500.0,8.219e-05,2]
[355762483,1741544284909,-500.0,8.219e-05,2]
[355762484,1741544284936,-500.0,8.219e-05,2]
[355762485,1741544284963,-500.0,8.219e-05,2]
[355762486,1741544284989,-500.0,8.219e-05,2]
[355762487,1741544285014,-500.0,8.219e-05,2]
[355762488,1741544285040,-505.40115177,8.219e-05,2]
[355762489,1741544285067,-500.0,8.219e-05,2]
[355762490,1741544285093,-500.0,8.219e-05,2]
[355762491,1741544285125,-500.0,8.219e-05,2]
[355762492,1741544285151,-500.0,8.219e-05,2]
[355762493,1741544285178,-500.0,8.219e-05,2]
[355762494,1741544285208,-500.0,8.219e-05,2]
[355762495,1741544285234,-500.0,8.219e-05,2]
[355762496,1741544285263,-500.0,8.219e-05,2]
[355762497,1741544285293,-500.0,8.219e-05,2]
[355762498,1741544285320,-500.0,8.219e-05,2]
[355762499,1741544285349,-500.78215778,8.219e-05,2]
[355762500,1741544285375,-500.0,8.219e-05,2]
[355762501,1741544285401,-500.0,8.219e-05,2]
[355762502,1741544285426,-500.0,8.219e-05,2]
[355762503,1741544285453,-500.0,8.219e-05,2]
[355762504,1741544285479,-500.0,8.219e-05,2]
[355762505,1741544285506,-500.0,8.219e-05,2]
[355762506,1741544285532,-500.0,8.219e-05,2]
[355762507,1741544285559,-500.0,8.219e-05,2]
[355762508,1741544285585,-500.0,8.219e-05,2]
[355762509,1741544285616,-500.0,8.219e-05,2]
[355762510,1741544285642,-500.0,8.219e-05,2]
[355762511,1741544285669,-500.0,8.219e-05,2]
[355762512,1741544285696,-507.12983934,8.219e-05,2]
[355762513,1741544285723,-500.0,8.219e-05,2]
[355762514,1741544285752,-500.0,8.219e-05,2]
[355762515,1741544285780,-500.0,8.219e-05,2]
[355762516,1741544285808,-500.0,8.219e-05,2]
[355762517,1741544285837,-284.03,8.219e-05,2]
[355762518,1741544285871,-426.15847904,8.219e-05,2]
[355762519,1741544285899,-868.01,8.219e-05,2]
[355762520,1741544285927,-500.0,8.219e-05,2]
[355762521,1741544285955,-500.0,8.219e-05,2]
[355762522,1741544285984,-500.0,8.219e-05,2]
[355762523,1741544286011,-722.89,8.219e-05,2]
[355762524,1741544286038,-500.0,8.219e-05,2]
[355762525,1741544286065,-500.0,8.219e-05,2]
[355762526,1741544286092,-500.0,8.219e-05,2]
[355762527,1741544286125,-500.0,8.219e-05,2]
[355762528,1741544286152,-488.53327793,8.219e-05,2]
[355762529,1741544286179,-2048.65,8.219e-05,2]
[355762530,1741544286213,-500.0,8.219e-05,2]
[355762531,1741544286239,-500.0,8.219e-05,2]
[355762532,1741544286266,-500.0,8.219e-05,2]
[355762533,1741544286296,-500.0,8.219e-05,2]
[355762534,1741544286322,-500.0,8.219e-05,2]
[355762535,1741544286353,-500.0,8.219e-05,2]
[355762536,1741544286379,-500.0,8.219e-05,2]
[355762537,1741544286404,-500.0,8.219e-05,2]
[355762538,1741544286433,-500.0,8.219e-05,2]
[355762539,1741544286460,-3036.38,8.219e-05,2]
[355762540,1741544286486,-500.0,8.219e-05,2]
[355762541,1741544286514,-3058.32,8.219e-05,2]
[355762542,1741544286541,-500.0,8.219e-05,2]
[355762543,1741544286568,-500.0,8.219e-05,2]
[355762544,1741544286594,-500.0,8.219e-05,2]
[355762545,1741544286624,-598.77,8.219e-05,2]
[355762546,1741544286653,-500.0,8.219e-05,2]
[355762547,1741544286680,-500.0,8.219e-05,2]
[355762548,1741544286707,-500.0,8.219e-05,2]
[355762549,1741544286733,-500.0,8.219e-05,2]
[355762550,1741544286762,-500.0,8.219e-05,2]
[355762551,1741544286791,-737.72,8.219e-05,2]
[355762552,1741544286822,-500.0,8.219e-05,2]
[355762553,1741544286853,-500.0,8.219e-05,2]
[355762554,1741544286881,-500.0,8.219e-05,2]
[355762555,1741544286908,-500.0,8.219e-05,2]
[355762556,1741544286935,-500.0,8.219e-05,2]
[355762557,1741544286962,-500.0,8.219e-05,2]
[355762558,1741544286993,-1994.99,8.219e-05,2]
[355762559,1741544287020,-500.0,8.219e-05,2]
[355762560,1741544287047,-500.0,8.219e-05,2]
[355762561,1741544287074,-500.0,8.219e-05,2]
[355762562,1741544287103,-500.0,8.219e-05,2]
[355762563,1741544287132,-500.0,8.219e-05,2]
[355762564,1741544287160,-500.0,8.219e-05,2]
[355762565,1741544287188,-500.0,8.219e-05,2]
[355762566,1741544287220,-882.84,8.219e-05,2]
[355762567,1741544287248,-1016.84,8.219e-05,2]
[355762568,1741544287275,-500.0,8.219e-05,2]
[355762569,1741544287306,-500.0,8.219e-05,2]
[355762570,1741544287544,-1000.45,8.219e-05,2]
[355762571,1741544287572,-500.0,8.219e-05,2]
[355762572,1741544287604,-500.0,8.219e-05,2]
[355762573,1741544287631,-500.0,8.219e-05,2]
[355762574,1741544287659,-500.0,8.219e-05,2]
[355762575,1741544287688,-500.0,8.219e-05,2]
[355762576,1741544287717,-500.0,8.219e-05,2]
[355762577,1741544287745,-735.67,8.219e-05,2]
[355762578,1741544287775,-500.0,8.219e-05,2]
[355762579,1741544287803,-500.0,8.219e-05,2]
[355762580,1741544287828,-500.0,8.219e-05,2]
[355762581,1741544287862,-6617.36,8.219e-05,2]
[355762582,1741544287891,-500.0,8.219e-05,2]
[355762583,1741544287918,-500.0,8.219e-05,2]
[355762584,1741544287945,-500.0,8.219e-05,2]
[355762585,1741544287977,-500.0,8.219e-05,2]
[355762586,1741544288004,-1136.52,8.219e-05,2]
[355762587,1741544288033,-183.321435,8.219e-05,2]
[355762588,1741544288059,-500.0,8.219e-05,2]
[355762589,1741544288087,-500.0,8.219e-05,2]
[355762590,1741544288119,-500.0,8.219e-05,2]
[355762591,1741544288146,-500.0,8.219e-05,2]
[355762592,1741544288174,-500.0,8.219e-05,2]
[355762593,1741544288206,-1137.77,8.219e-05,2]
[355762594,1741544288235,-500.0,8.219e-05,2]
[355762595,1741544288264,-500.0,8.219e-05,2]
[355762596,1741544288292,-500.0,8.219e-05,2]
[355762597,1741544288319,-500.0,8.219e-05,2]
[355762598,1741544288347,-1561.15,8.219e-05,2]
[355762599,1741544288384,-500.0,8.219e-05,2]
[355762600,1741544288413,-806.31,8.219e-05,2]
[355762601,1741544288442,-500.0,8.219e-05,2]
[355762602,1741544288470,-500.0,8.219e-05,2]
[355762603,1741544288498,-500.0,8.219e-05,2]
[355762604,1741544288524,-646.46,8.219e-05,2]
[355762605,1741544288551,-500.0,8.219e-05,2]
[355762606,1741544288580,-1231.71,8.219e-05,2]
[355762607,1741544288613,-1853.1,8.219e-05,2]
[355762608,1741544288640,-500.0,8.219e-05,2]
[355762609,1741544288668,-500.0,8.219e-05,2]
[355762610,1741544288696,-500.0,8.219e-05,2]
[355762611,1741544288724,-500.0,8.219e-05,2]
[355762612,1741544288752,-345.683312,8.219e-05,2]
[355762613,1741544288779,-500.0,8.219e-05,2]
[355762614,1741544288808,-605.17,8.219e-05,2]
[355762615,1741544288837,-500.0,8.219e-05,2]
[355762616,1741544288870,-549.85,8.219e-05,2]
[355762617,1741544288899,-500.0,8.219e-05,2]
[355762618,1741544288926,-500.0,8.219e-05,2]
[355762619,1741544288954,-500.0,8.219e-05,2]
[355762620,1741544288982,-500.0,8.219e-05,2]
[355762621,1741544289009,-500.0,8.219e-05,2]
[355762622,1741544289036,-5000.0,8.219e-05,2]
[355762623,1741544289063,-500.0,8.219e-05,2]
[355762624,1741544289090,-500.0,8.219e-05,2]
[355762625,1741544289123,-500.0,8.219e-05,2]
[355762626,1741544289151,-1286.74,8.219e-05,2]
[355762627,1741544289178,-500.0,8.219e-05,2]
[355762628,1741544289210,-500.0,8.219e-05,2]
[355762629,1741544289236,-500.0,8.219e-05,2]
[355762630,1741544289263,-500.0,8.219e-05,2]
[355762631,1741544289292,-500.0,8.219e-05,2]
[355762632,1741544289318,-506.88004087,8.219e-05,2]
[355762633,1741544289345,-500.0,8.219e-05,2]
[355762634,1741544289378,-922.93,8.219e-05,2]
[355762635,1741544289404,-500.0,8.219e-05,2]
[355762636,1741544289431,-607.81,8.219e-05,2]
[355762637,1741544289459,-500.0,8.219e-05,2]
[355762638,1741544289487,-500.0,8.219e-05,2]
[355762639,1741544289514,-500.0,8.219e-05,2]
[355762640,1741544289541,-500.0,8.219e-05,2]
[355762641,1741544289568,-500.0,8.219e-05,2]
[355762642,1741544289594,-500.0,8.219e-05,2]
[355762643,1741544289627,-1000.0,8.219e-05,2]
[355762644,1741544289655,-500.0,8.219e-05,2]
[355762645,1741544289682,-500.0,8.219e-05,2]
[355762646,1741544289709,-500.0,8.219e-05,2]
[355762647,1741544289737,-500.0,8.219e-05,2]
[355762648,1741544289765,-1417.04,8.219e-05,2]
[355762649,1741544289794,-610.36,8.219e-05,2]
[355762650,1741544289824,-500.0,8.219e-05,2]
[355762651,1741544289857,-500.0,8.219e-05,2]
[355762652,1741544289884,-608.52584999,8.219e-05,2]
[355762653,1741544289911,-500.0,8.219e-05,2]
[355762654,1741544289937,-500.0,8.219e-05,2]
[355762655,1741544289965,-1368.18,8.219e-05,2]
[355762656,1741544289992,-2123.02,8.219e-05,2]
[355762657,1741544290020,-732.75,8.219e-05,2]
[355762658,1741544290046,-693.32,8.219e-05,2]
[355762659,1741544290072,-500.0,8.219e-05,2]
[355762660,1741544290100,-500.0,8.219e-05,2]
[355762661,1741544290129,-500.0,8.219e-05,2]
[355762662,1741544290157,-1188.05,8.219e-05,2]
[355762663,1741544290184,-500.0,8.219e-05,2]
[355762664,1741544290213,-500.0,8.219e-05,2]
[355762665,1741544290241,-570.11,8.219e-05,2]
[355762666,1741544290268,-500.0,8.219e-05,2]
[355762667,1741544290299,-705.57,8.219e-05,2]
[355762668,1741544290326,-500.0,8.219e-05,2]
[355762669,1741544290353,-500.0,8.219e-05,2]
[355762670,1741544290383,-500.0,8.219e-05,2]
[355762671,1741544290410,-9637.13,8.219e-05,2]
[355762672,1741544290436,-500.0,8.219e-05,2]
[355762673,1741544290464,-1436.31,8.219e-05,2]
[355762674,1741544290492,-500.0,8.219e-05,2]
[355762675,1741544290518,-500.0,8.219e-05,2]
[355762676,1741544290545,-500.0,8.219e-05,2]
[355762677,1741544290574,-500.0,8.219e-05,2]
[355762678,1741544290602,-953.76,8.219e-05,2]
[355762679,1741544290632,-500.0,8.219e-05,2]
[355762680,1741544290660,-500.0,8.219e-05,2]
[355762681,1741544290688,-500.0,8.219e-05,2]
[355762682,1741544290715,-500.0,8.219e-05,2]
[355762683,1741544290742,-1022.29,8.219e-05,2]
[355762684,1741544290770,-500.0,8.219e-05,2]
[355762685,1741544290798,-500.0,8.219e-05,2]
[355762686,1741544290825,-924.18,8.219e-05,2]
[355762687,1741544290853,-596.63721315,8.219e-05,2]
[355762688,1741544290884,-500.0,8.219e-05,2]
[355762689,1741544290913,-1009.08,8.219e-05,2]
[355762690,1741544290940,-500.0,8.219e-05,2]
[355762691,1741544290966,-508.36514595,8.219e-05,2]
[355762692,1741544290993,-1839.7,8.219e-05,2]
[355762693,1741544291020,-500.0,8.219e-05,2]
[355762694,1741544291046,-758.95,8.219e-05,2]
[355762695,1741544291073,-1572.15,8.219e-05,2]
[355762696,1741544291102,-500.0,8.219e-05,2]
[355762697,1741544291305,-500.0,8.219e-05,2]
[355762698,1741544291333,-2642.38,8.219e-05,2]
[355762699,1741544291364,-500.0,8.219e-05,2]
[355762700,1741544291392,-500.0,8.219e-05,2]
[355762701,1741544291419,-500.0,8.219e-05,2]
[355762702,1741544291446,-500.0,8.219e-05,2]
[355762703,1741544291472,-547.48,8.219e-05,2]
[355762704,1741544291499,-824.21,8.219e-05,2]
[355762705,1741544291527,-500.0,8.219e-05,2]
[355762706,1741544291554,-640.37,8.219e-05,2]
[355762707,1741544291582,-500.0,8.219e-05,2]
[355762708,1741544291610,-500.0,8.219e-05,2]
[355762709,1741544291639,-500.0,8.219e-05,2]
[355762710,1741544291668,-500.0,8.219e-05,2]
[355762711,1741544291695,-1166.89,8.219e-05,2]
[355762712,1741544291723,-500.0,8.219e-05,2]
[355762713,1741544291750,-500.0,8.219e-05,2]
[355762714,1741544291777,-500.0,8.219e-05,2]
[355762715,1741544291806,-500.0,8.219e-05,2]
[355762716,1741544291834,-1480.22,8.219e-05,2]
[355762717,1741544291863,-500.0,8.219e-05,2]
[355762718,1741544291892,-500.0,8.219e-05,2]
[355762719,1741544291921,-647.38,8.219e-05,2]
[355762720,1741544291949,-500.0,8.219e-05,2]
[355762721,1741544291976,-500.0,8.219e-05,2]
[355762722,1741544292003,-762.51,8.219e-05,2]
[355762723,1741544292035,-766.49,8.219e-05,2]
[355762724,1741544292061,-500.0,8.219e-05,2]
[355762725,1741544292089,-4666.49,8.219e-05,2]
[355762726,1741544292117,-1248.32,8.219e-05,2]
[355762727,1741544292143,-500.0,8.219e-05,2]
[355762728,1741544292169,-500.0,8.219e-05,2]
[355762729,1741544292199,-791.17,8.219e-05,2]
[355762730,1741544292226,-516.99,8.219e-05,2]
[355762731,1741544292254,-500.0,8.219e-05,2]
[355762732,1741544292284,-500.0,8.219e-05,2]
[355762733,1741544292312,-500.0,8.219e-05,2]
[355762734,1741544292338,-500.0,8.219e-05,2]
[355762735,1741544292368,-500.0,8.219e-05,2]
[355762736,1741544292394,-500.0,8.219e-05,2]
[355762737,1741544292421,-1215.57,8.219e-05,2]
[355762738,1741544292448,-500.0,8.219e-05,2]
[355762739,1741544292474,-500.0,8.219e-05,2]
[355762740,1741544292501,-981.3,8.219e-05,2]
[355762741,1741544292527,-503.36474699,8.219e-05,2]
[355762742,1741544292554,-306.39708078,8.219e-05,2]
[355762743,1741544292582,-500.0,8.219e-05,2]
[355762744,1741544292615,-500.0,8.219e-05,2]
[355762745,1741544292644,-634.4,8.219e-05,2]
[355762746,1741544292673,-500.0,8.219e-05,2]
[355762747,1741544292702,-1096.1,8.219e-05,2]
[355762748,1741544292730,-500.0,8.219e-05,2]
[355762749,1741544292758,-1867.82,8.219e-05,2]
[355762750,1741544292785,-1711.51,8.219e-05,2]
[355762751,1741544292812,-500.0,8.219e-05,2]
[355762752,1741544292840,-505.74507238,8.219e-05,2]
[355762753,1741544292872,-500.0,8.219e-05,2]
[355762754,1741544292900,-500.0,8.219e-05,2]
[355762755,1741544292928,-1440.24,8.219e-05,2]
[355762756,1741544292958,-500.0,8.219e-05,2]
[355762757,1741544292986,-500.0,8.219e-05,2]
[355762758,1741544293014,-1210.06,8.219e-05,2]
[355762759,1741544293042,-1925.89,8.219e-05,2]
[355762760,1741544293070,-500.0,8.219e-05,2]
[355762761,1741544293098,-500.0,8.219e-05,2]
[355762762,1741544293132,-500.0,8.219e-05,2]
[355762763,1741544293160,-500.0,8.219e-05,2]
[355762764,1741544293186,-649.2,8.219e-05,2]
[355762765,1741544293221,-7708.49,8.219e-05,2]
[355762766,1741544293249,-500.0,8.219e-05,2]